bitfinex/quotes_ETHUSD_20240709
["timestamp","ask_amount","ask_price","bid_price","bid_amount"]
[1720546071925,3.36612227,3074.9,3074.7,3.25228]
[1720546072155,1.94658017,3074.9,3074.7,3.25228]
[1720546072539,0.68203188,3074.8,3074.7,3.25228]
[1720546073461,1.94658017,3074.9,3074.8,3.25224]
[1720546073462,0.9234781,3074.9,3074.8,3.25224]
[1720546073662,1.60543685,3074.9,3074.8,3.25224]
[1720546073867,1.60543137,3074.9,3074.8,3.25224]
[1720546074766,0.9234781,3074.9,3074.8,3.25224]
[1720546075271,1.605418,3074.9,3074.8,3.25224]
[1720546075471,0.9234781,3074.9,3074.8,3.25224]
[1720546075628,3.36594443,3074.9,3074.6,3.25235]
[1720546075832,1.36390019,3075.1,3074.6,3.25235]
[1720546075833,1.60541327,3074.7,3074.6,3.25235]
[1720546076168,1.60543656,3074.7,3074.6,3.25235]
[1720546077030,0.9234781,3074.7,3074.6,3.25235]
[1720546077649,0.9234781,3074.5,3074.4,5.58129]
[1720546077854,0.9234781,3074.5,3074.4,6.139419]
[1720546078468,1.60530989,3074.5,3074.4,6.139419]
[1720546078670,1.60530989,3074.5,3074.4,7.214419]
[1720546078881,0.9234781,3074.5,3074.4,7.214419]
[1720546079185,1.60530989,3074.5,3074.4,7.214419]
[1720546079388,0.9234781,3074.5,3074.4,7.214419]
[1720546081454,0.9234781,3074.5,3074.4,10.467079]
[1720546081770,0.9234781,3074.6,3074.5,3.25256]
[1720546081985,0.9234781,3074.6,3074.5,4.2992679]
[1720546083191,0.9234781,3074.6,3074.5,5.3742679]
[1720546088585,0.9234781,3074.6,3074.5,4.32756]
[1720546092699,2.05017068,3074.6,3074.5,4.32756]
[1720546093274,2.73125073,3074.6,3074.5,4.32756]
[1720546094068,2.05017068,3074.6,3074.5,4.32756]
[1720546094607,2.05017803,3074.6,3074.5,4.32756]
[1720546094914,0.68108005,3074.8,3074.6,3.25244]
[1720546095116,0.68108005,3074.8,3074.7,7.57968]
[1720546095117,0.9234781,3074.8,3074.7,7.57968]
[1720546095411,8.3834781,3075.0,3074.9,3.25213]
[1720546095573,9.50997306,3075.0,3074.9,5.003243]
[1720546095774,8.3834781,3075.0,3074.9,5.003243]
[1720546096480,9.50993026,3075.0,3074.8,2.434]
[1720546096662,0.9234781,3074.8,3074.7,4.32727]
[1720546096863,2.04993026,3074.8,3074.7,4.32727]
[1720546097202,2.73101031,3074.8,3074.7,4.32727]
[1720546097767,1.60455815,3074.8,3074.7,4.32727]
[1720546097985,2.73118696,3074.8,3074.7,4.32727]
[1720546098298,2.05010691,3074.8,3074.7,4.32727]
[1720546098504,0.9234781,3074.6,3074.5,5.68653]
[1720546098688,2.73170687,3074.6,3074.5,5.68653]
[1720546099498,1.80822877,3074.6,3074.5,5.68653]
[1720546100001,1.60507806,3074.7,3074.6,3.25245]
[1720546100209,2.73170865,3074.7,3074.6,4.32745]
[1720546101202,2.73171619,3074.7,3074.6,4.32745]
[1720546101767,1.12663813,3074.7,3074.6,8.6814419]
[1720546101972,0.9234781,3074.7,3074.6,8.6814419]
[1720546104188,1.60507806,3074.7,3074.6,8.6814419]
[1720546104413,0.9234781,3074.7,3074.6,8.6814419]
[1720546104573,2.05008233,3074.7,3074.6,8.6814419]
[1720546104769,0.9234781,3074.7,3074.6,8.6814419]
[1720546104994,2.05008733,3074.7,3074.6,8.6814419]
[1720546105210,2.73242283,3074.7,3074.6,8.6814419]
[1720546105407,2.05008733,3074.7,3074.6,4.32745]
[1720546105579,4.49317581,3074.7,3074.6,4.32745]
[1720546105992,3.46966712,3074.7,3074.6,4.32745]
[1720546106403,4.83434537,3074.7,3074.6,7.5799]
[1720546106613,4.49372117,3074.7,3074.6,7.5799]
[1720546107913,0.68287357,3074.7,3074.6,11.83374]
[1720546108084,8.14287357,3075.0,3074.9,6.50426]
[1720546108280,7.46,3075.0,3074.9,7.57926]
[1720546108489,8.14287357,3075.0,3074.9,8.90191]
[1720546108899,7.46,3075.0,3074.9,8.90191]
[1720546109427,9.06635167,3075.0,3074.9,8.90191]
[1720546109605,8.3834781,3075.0,3074.9,8.90191]
[1720546109777,9.06652223,3075.0,3074.9,8.90191]
[1720546110418,8.3834781,3075.0,3074.9,8.90191]
[1720546110591,0.9234781,3075.0,3074.9,8.90191]
[1720546110927,1.60652223,3075.0,3074.9,8.90191]
[1720546111290,0.9234781,3075.0,3074.9,8.90191]
[1720546111511,1.60652223,3075.0,3074.9,8.90191]
[1720546111836,0.9234781,3075.0,3074.9,8.90191]
[1720546111999,1.60652223,3075.0,3074.9,8.90191]
[1720546114104,0.9234781,3075.0,3074.9,8.90191]
[1720546115307,0.68304413,3075.1,3075.0,9.75609]
[1720546115526,0.68304413,3075.2,3075.1,6.50384]
[1720546115841,1.9478663,3075.4,3075.1,6.50384]
[1720546115842,0.68304413,3075.3,3075.2,6.50364]
[1720546115995,0.68304413,3075.3,3075.2,7.57864]
[1720546116200,0.68236525,3075.5,3075.3,5.51131]
[1720546116504,0.68236525,3075.5,3075.4,7.5782]
[1720546116716,0.6824206,3075.6,3075.5,6.503]
[1720546116919,0.6824206,3075.6,3075.5,7.578]
[1720546117138,1.0243882,3075.7,3075.6,6.50278]
[1720546117139,0.6824206,3075.7,3075.6,6.50278]
[1720546117438,0.68227135,3075.7,3075.6,6.50278]
[1720546117597,21.6078663,3075.8,3075.7,6.50258]
[1720546117801,21.6078663,3075.8,3075.7,7.57758]
[1720546117802,22.0025436,3075.8,3075.7,7.57758]
[1720546118125,23.02551377,3075.8,3075.7,7.57758]
[1720546118319,22.0025436,3075.8,3075.7,7.57758]
[1720546119030,23.02541635,3075.8,3075.7,7.57758]
[1720546119524,1.94635085,3075.8,3075.7,7.57758]
[1720546120042,0.9234781,3075.8,3075.7,7.57758]
[1720546120225,1.60471342,3075.8,3075.7,7.57758]
[1720546121246,1.60460267,3075.8,3075.7,7.57758]
[1720546121914,0.9234781,3075.8,3075.7,7.57758]
[1720546122533,1.60468074,3075.8,3075.7,7.57758]
[1720546123898,1.60468074,3075.8,3075.7,4.32629]
[1720546124104,1.60468074,3075.8,3075.4,3.25151]
[1720546124105,0.9234781,3075.6,3075.4,3.25151]
[1720546124348,1.60452408,3075.6,3075.5,3.2515]
[1720546124553,0.9234781,3075.6,3075.5,3.2515]
[1720546124863,1.6045157,3075.6,3075.5,3.2515]
[1720546125360,0.9234781,3075.6,3075.5,3.2515]
[1720546126449,1.6045157,3075.6,3075.5,3.2515]
[1720546126957,0.9234781,3075.6,3075.5,3.2515]
[1720546127158,0.6810376,3075.7,3075.6,8.84478]
[1720546127380,1.6045157,3075.8,3075.7,3.25129]
[1720546127866,1.60454769,3075.8,3075.7,3.25129]
[1720546128027,0.68103702,3075.8,3075.7,6.50258]
[1720546128229,1.19160438,3075.9,3075.7,6.50258]
[1720546128230,1.0934781,3075.9,3075.8,6.50236]
[1720546128433,1.0934781,3075.9,3075.8,7.57736]
[1720546129266,1.0934781,3075.9,3075.8,8.9936288]
[1720546129834,1.0934781,3075.9,3075.8,7.57736]
[1720546131534,1.0934781,3075.9,3075.8,4.32618]
[1720546131796,1.77451512,3075.9,3075.8,4.32618]
[1720546132792,1.77451512,3075.9,3075.8,1.075]
[1720546133087,0.9234781,3075.6,3075.5,3.25147]
[1720546133282,0.9234781,3075.6,3075.5,4.32647]
[1720546137898,1.0934781,3075.9,3075.8,3.25118]
[1720546138253,1.0934781,3075.9,3075.8,6.50236]
[1720546139193,1.0934781,3075.9,3075.8,8.90186]
[1720546139406,0.17,3075.9,3075.8,10.224681]
[1720546139905,0.17,3075.9,3075.8,13.475861]
[1720546142009,0.17,3075.9,3075.8,16.727041]
[1720546145368,0.17,3075.9,3075.8,19.727041]
[1720546147921,0.17,3075.9,3075.8,16.727041]
[1720546150090,0.17,3075.9,3075.8,19.727041]
[1720546155528,1e-05,3075.9,3075.8,22.978221]
[1720546156718,1e-05,3075.9,3075.8,24.053221]
[1720546158512,1e-05,3075.9,3075.8,20.802041]
[1720546158900,1e-05,3075.9,3075.8,16.22804]
[1720546160499,1e-05,3075.9,3075.8,13.82854]
[1720546165847,1e-05,3075.9,3075.8,10.57736]
[1720546167257,1e-05,3075.9,3075.8,7.57736]
[1720546167810,1e-05,3075.9,3075.7,3.25123]
[1720546168009,0.9234781,3075.8,3075.7,3.25129]
[1720546168336,0.9234781,3075.8,3075.7,4.32629]
[1720546170164,0.9234781,3075.8,3075.7,7.57758]
[1720546172096,1e-05,3075.9,3075.7,7.57758]
[1720546172097,1e-05,3075.9,3075.8,3.25118]
[1720546172455,0.9234881,3075.9,3075.8,3.25118]
[1720546172975,0.9234881,3075.9,3075.5,3.25144]
[1720546172976,0.9234781,3075.6,3075.5,3.25144]
[1720546173179,0.9234781,3075.6,3075.5,7.57794]
[1720546181613,0.9234781,3075.6,3075.5,4.32644]
[1720546182404,1.60435407,3075.6,3075.5,4.32644]
[1720546182607,0.9234781,3075.6,3075.5,4.32644]
[1720546183315,0.9234781,3075.6,3075.5,7.57794]
[1720546183488,0.9234781,3075.6,3075.5,4.32644]
[1720546185700,0.9234781,3075.6,3075.5,7.57794]
[1720546185903,0.9234781,3075.6,3075.5,4.32644]
[1720546188877,0.9234781,3075.6,3075.5,1.075]
[1720546189216,1.60435407,3075.6,3075.5,1.075]
[1720546189401,0.9234781,3075.6,3075.5,4.3265]
[1720546196424,2.04978244,3075.6,3075.5,4.3265]
[1720546198431,2.04978188,3075.6,3075.5,4.3265]
[1720546198940,2.04978188,3075.6,3075.0,5.63071]
[1720546198941,0.9234781,3075.3,3075.2,3.25174]
[1720546199099,0.9234781,3075.3,3075.2,4.32674]
[1720546199300,0.9234781,3075.3,3075.2,7.57856]
[1720546200537,0.9234781,3075.5,3075.4,6.5032]
[1720546200696,0.9234781,3075.5,3075.4,7.5782]
[1720546201837,2.04978149,3075.5,3075.4,4.3266]
[1720546201999,2.7306897,3075.5,3075.4,4.3266]
[1720546202836,2.7306897,3075.5,3075.4,1.075]
[1720546203036,0.9234781,3075.3,3075.2,3.25174]
[1720546203332,0.9234781,3075.3,3075.2,4.32674]
[1720546204798,0.9234781,3075.3,3075.2,7.57856]
[1720546205596,1.60389727,3075.3,3075.2,4.32674]
[1720546205797,0.9234781,3075.3,3075.2,4.32674]
[1720546206123,1.60405257,3075.3,3075.2,4.32674]
[1720546206692,0.9234781,3075.3,3075.2,4.32674]
[1720546206898,1.60405257,3075.3,3075.2,4.32674]
[1720546207293,1.60405257,3075.3,3075.2,5.322466]
[1720546207497,0.9234781,3075.3,3075.2,8.574286]
[1720546208122,0.9234781,3075.3,3075.2,10.984186]
[1720546210345,0.9234781,3075.3,3075.2,11.146186]
[1720546211636,0.9234781,3075.3,3075.2,8.736286]
[1720546211838,3.36353556,3075.3,3075.2,7.74056]
[1720546212758,3.36353556,3075.3,3075.2,4.48874]
[1720546213238,3.36353556,3075.3,3075.2,0.162]
[1720546213426,3.36353556,3075.3,3075.2,1.237]
[1720546214134,1.9443398,3075.3,3075.2,1.237]
[1720546214336,3.36544081,3075.3,3075.2,1.237]
[1720546214536,0.9234781,3075.3,3075.2,0.162]
[1720546214761,3.46923323,3075.3,3075.2,0.162]
[1720546215058,7.50664755,3075.3,3075.2,0.162]
[1720546215262,5.46121002,3075.3,3075.2,0.162]
[1720546215427,5.4618118,3075.3,3075.2,0.162]
[1720546215623,19.30757559,3075.3,3075.2,0.162]
[1720546215868,11.01008453,3075.3,3075.2,0.162]
[1720546216025,11.18714504,3075.3,3075.2,0.162]
[1720546216224,7.5383337,3075.3,3075.2,0.162]
[1720546216424,9.58179074,3075.3,3075.2,0.162]
[1720546216821,5.31506123,3075.3,3075.2,0.162]
[1720546217065,5.3146932,3075.3,3075.2,0.162]
[1720546217278,3.46962437,3075.3,3075.2,0.162]
[1720546217442,1.41941391,3075.3,3075.2,0.162]
[1720546217768,2.54593289,3075.3,3075.2,0.162]
[1720546218080,5.1722337,3075.3,3075.2,0.162]
[1720546218238,3.46941099,3075.3,3075.2,0.162]
[1720546218464,4.83159398,3075.3,3075.2,0.162]
[1720546218630,5.1722337,3075.3,3075.2,0.162]
[1720546219865,3.46941099,3075.3,3075.2,0.162]
[1720546220173,4.8318714,3075.3,3075.2,0.162]
[1720546220840,5.17246982,3075.3,3075.2,0.162]
[1720546221056,3.46935267,3075.3,3075.2,0.162]
[1720546221428,5.17246982,3075.3,3075.2,0.162]
[1720546221977,3.46935267,3075.3,3075.2,0.162]
[1720546223744,5.46187058,3075.3,3075.2,0.162]
[1720546223945,7.50561117,3075.3,3075.2,0.162]
[1720546224171,5.46217243,3075.3,3075.2,0.162]
[1720546224363,7.50563199,3075.3,3075.2,0.162]
[1720546224681,7.50491938,3075.3,3075.2,0.162]
[1720546224914,3.46970179,3075.3,3075.2,0.162]
[1720546225192,5.1726292,3075.3,3075.2,0.162]
[1720546225341,5.17238211,3075.3,3075.2,0.162]
[1720546225542,3.4694547,3075.3,3075.2,0.162]
[1720546225782,5.46227032,3075.3,3075.2,0.162]
[1720546226443,7.50517457,3075.3,3075.2,0.162]
[1720546226844,8.71398032,3075.3,3075.2,0.162]
[1720546227073,11.71398032,3075.3,3075.2,0.162]
[1720546227477,8.74155899,3075.3,3075.2,0.162]
[1720546227680,13.7571607,3075.3,3075.2,0.162]
[1720546228546,11.7143947,3075.3,3075.2,0.162]
[1720546228746,8.4626847,3075.3,3075.2,0.162]
[1720546228979,6.46975355,3075.3,3075.2,0.162]
[1720546229608,8.17114141,3075.3,3075.2,0.162]
[1720546230476,6.46975355,3075.3,3075.2,0.162]
[1720546232463,8.46276143,3075.3,3075.2,0.162]
[1720546232777,10.50413257,3075.3,3075.2,0.162]
[1720546233347,6.46975355,3075.3,3075.2,0.162]
[1720546234300,8.46309567,3075.3,3075.2,0.162]
[1720546234587,5.19686125,3075.3,3075.2,0.162]
[1720546234770,10.50579059,3075.3,3075.2,0.162]
[1720546234959,8.46326689,3075.3,3075.2,0.162]
[1720546235155,10.50579059,3075.3,3075.2,0.162]
[1720546235392,8.46326689,3075.3,3075.2,0.162]
[1720546235963,10.50461862,3075.3,3075.2,0.162]
[1720546237688,10.50417205,3075.3,3075.2,0.162]
[1720546238004,17.47211039,3075.3,3075.2,0.162]
[1720546238504,16.26169743,3075.3,3075.2,0.162]
[1720546238700,10.50398743,3075.3,3075.2,0.162]
[1720546238927,6.46983194,3075.3,3075.2,0.162]
[1720546240095,8.17125307,3075.3,3075.2,0.162]
[1720546240424,6.46983194,3075.3,3075.2,0.162]
[1720546240730,8.1713206,3075.3,3075.2,0.162]
[1720546240925,7.04447708,3075.3,3075.2,0.162]
[1720546241232,6.4695839,3075.3,3075.2,0.162]
[1720546241826,8.1715326,3075.3,3075.2,0.162]
[1720546242723,6.4695839,3075.3,3075.2,0.162]
[1720546242925,6.4695839,3075.3,3075.2,3.5404]
[1720546243228,3.07147347,3075.3,3075.2,7.47146]
[1720546243403,3.07147347,3075.3,3075.2,6.79222]
[1720546243804,2.05007358,3075.3,3075.2,6.79222]
[1720546244205,0.9234781,3075.3,3075.2,6.79222]
[1720546244406,1.60453613,3075.3,3075.2,6.79222]
[1720546244588,1.60457246,3075.3,3075.2,10.723262]
[1720546244793,2.04986756,3075.3,3075.2,10.723262]
[1720546245012,3.0715091,3075.3,3075.2,10.723262]
[1720546245219,2.04986756,3075.3,3075.2,10.723262]
[1720546245528,3.0715091,3075.3,3075.2,10.723262]
[1720546245701,4.49083106,3075.3,3075.2,10.723262]
[1720546246027,2.04986756,3075.3,3075.2,10.723262]
[1720546246730,0.9234781,3075.3,3075.2,10.723262]
[1720546247712,1.6045671,3075.3,3075.2,10.723262]
[1720546248146,0.681089,3075.4,3075.3,8.76652]
[1720546248451,1.6045671,3075.5,3075.4,8.7663]
[1720546248762,9.0645671,3075.7,3075.6,6.50278]
[1720546249047,0.681089,3075.7,3075.6,9.86698]
[1720546249255,0.681099,3075.9,3075.8,8.79156]
[1720546249411,0.681099,3075.9,3075.8,9.86656]
[1720546249617,1e-05,3075.9,3075.8,9.86656]
[1720546249850,0.9234881,3075.9,3075.8,9.86656]
[1720546250036,0.9234881,3075.9,3075.8,10.96204556]
[1720546250353,1e-05,3075.9,3075.8,10.96204556]
[1720546250556,1e-05,3075.9,3075.8,14.21322556]
[1720546252616,1e-05,3075.9,3075.8,15.71522556]
[1720546253041,1e-05,3075.9,3075.8,18.96640556]
[1720546253242,1e-05,3075.9,3075.8,21.96640556]
[1720546253822,7.46,3076.2,3076.1,9.75258]
[1720546254020,7.46,3076.2,3076.1,15.28214]
[1720546255716,7.46,3076.7,3076.6,8.89868]
[1720546255916,0.9234781,3077.0,3076.7,2.398]
[1720546256161,0.9234781,3077.0,3076.7,3.28787]
[1720546256364,0.9234781,3077.0,3076.9,6.50004]
[1720546257071,0.9234781,3076.8,3076.7,2.398]
[1720546257220,0.9234781,3076.8,3076.6,3.25024]
[1720546257537,0.9234781,3076.6,3076.5,6.50083]
[1720546259428,0.9234781,3076.6,3076.5,3.25039]
[1720546260125,0.9234781,3076.6,3076.5,6.50083]
[1720546260775,0.9234781,3076.6,3076.5,3.25039]
[1720546261450,0.9234781,3076.6,3076.3,3.2506]
[1720546261651,0.9234781,3076.4,3076.1,2.3256]
[1720546261843,0.9234781,3076.2,3076.1,5.57646]
[1720546262370,0.9234781,3076.0,3075.9,3.25097]
[1720546262779,0.9234781,3076.0,3075.9,6.50205]
[1720546263394,0.9234781,3076.3,3076.2,3.25072]
[1720546263979,0.9234781,3076.1,3076.0,6.50185]
[1720546264157,0.9234781,3076.1,3076.0,3.25088]
[1720546264688,0.9234781,3076.1,3076.0,6.50185]
[1720546264884,7.46,3076.5,3076.4,3.25055]
[1720546265058,7.46,3076.5,3076.4,5.63555]
[1720546265396,7.46,3076.5,3076.4,3.25055]
[1720546267615,7.46,3076.5,3076.4,5.61465]
[1720546268418,0.9234781,3076.6,3076.4,5.61465]
[1720546268713,0.9234781,3076.6,3076.5,3.25044]
[1720546268885,0.9234781,3076.6,3076.5,6.50088]
[1720546269086,0.9234781,3076.6,3076.5,7.387378]
[1720546270571,0.9234781,3076.8,3076.7,6.50046]
[1720546270772,0.9234781,3076.8,3076.7,8.84836]
[1720546272917,0.9234781,3076.8,3076.7,5.59813]
[1720546273219,0.9234781,3076.5,3076.4,5.52123]
[1720546273576,0.9234781,3076.5,3076.4,8.77178]
[1720546274711,0.9234781,3076.3,3076.2,8.80486]
[1720546276188,0.9234781,3076.3,3076.2,3.2507]
[1720546276391,0.9234781,3076.3,3076.2,3.25076]
[1720546277991,0.9234781,3076.1,3076.0,5.68467]
[1720546278987,0.9234781,3075.9,3075.8,3.25108]
[1720546280627,0.9234781,3075.9,3075.7,3.25128]
[1720546280924,0.9234781,3075.6,3075.5,3.25143]
[1720546281295,0.9234781,3075.4,3075.3,3.25164]
[1720546281491,0.9234781,3075.4,3075.3,6.50335]
[1720546282142,0.9234781,3075.4,3075.3,7.419505]
[1720546284348,7.46,3075.9,3075.8,3.25118]
[1720546284633,7.46,3075.9,3075.8,8.92396]
[1720546286201,0.9234781,3076.0,3075.9,3.25108]
[1720546286395,0.67800192,3076.3,3076.2,3.25076]
[1720546286601,2.04959037,3076.3,3076.2,3.25076]
[1720546286839,0.9234781,3076.3,3076.2,3.25076]
[1720546287714,0.9234781,3076.3,3076.1,3.25086]
[1720546288038,1.8041624,3076.2,3076.1,3.25086]
[1720546288217,1.60148002,3076.3,3076.1,3.25086]
[1720546288412,0.67800192,3076.2,3076.1,3.25086]
[1720546288643,1.55148002,3076.3,3076.2,3.25076]
[1720546289339,1.55148002,3076.3,3076.1,3.25086]
[1720546289842,1.55148002,3076.3,3075.9,3.25106]
[1720546289843,0.8734781,3076.0,3075.9,3.25101]
[1720546291040,0.8734781,3076.0,3075.9,3.82283321]
[1720546292342,0.8734781,3076.0,3075.9,7.07391321]
[1720546292558,1.55432332,3076.1,3076.0,3.25097]
[1720546292712,0.8734781,3076.1,3076.0,3.25097]
[1720546292924,1.55432332,3076.2,3076.1,3.25086]
[1720546293151,0.8734781,3076.2,3076.1,6.50172]
[1720546293350,1.55432332,3076.2,3076.1,7.30402835]
[1720546293520,0.8734781,3076.2,3076.1,7.30402835]
[1720546295159,0.68157319,3076.3,3076.1,7.30402835]
[1720546295160,1.55505129,3076.3,3076.2,6.50152]
[1720546295336,0.8734781,3076.3,3076.2,6.50152]
[1720546295532,0.8734781,3076.3,3076.2,7.78246884]
[1720546295969,1.55505129,3076.3,3076.2,7.78246884]
[1720546297078,0.8734781,3076.3,3076.2,7.78246884]
[1720546298101,0.68157319,3076.4,3076.3,8.7561]
[1720546298238,9.69662449,3076.7,3076.3,8.7561]
[1720546298239,0.8734781,3076.5,3076.4,6.5011]
[1720546299283,1.55505129,3076.5,3076.4,6.5011]
[1720546299653,0.8734781,3076.5,3076.4,6.5011]
[1720546299987,1.55505129,3076.5,3076.4,6.5011]
[1720546300571,1.55505129,3076.5,3076.4,3.25055]
[1720546300907,1.55505129,3076.5,3076.0,3.25087]
[1720546300908,0.8734781,3076.1,3076.0,3.25087]
[1720546301080,1.89628067,3076.1,3076.0,3.25087]
[1720546301424,2.29242581,3076.1,3076.0,6.50184]
[1720546301701,1.89644421,3076.1,3076.0,6.50184]
[1720546301861,0.8734781,3076.1,3076.0,6.50184]
[1720546302970,1.55555411,3076.1,3076.0,6.50184]
[1720546303572,0.8734781,3076.1,3076.0,6.50184]
[1720546303771,1.89659211,3076.1,3076.0,6.50184]
[1720546303958,0.8734781,3076.1,3076.0,6.50184]
[1720546304185,3.31551638,3076.1,3076.0,3.25087]
[1720546304359,2.29240237,3076.1,3076.0,3.25087]
[1720546304558,3.41856951,3076.1,3076.0,3.25087]
[1720546304763,4.78272153,3076.1,3076.0,3.25087]
[1720546305400,4.78271133,3076.1,3076.0,3.25087]
[1720546305993,2.29240237,3076.1,3076.0,3.25087]
[1720546306316,2.29242914,3076.1,3076.0,3.25087]
[1720546306608,0.8734781,3075.9,3075.8,3.25109]
[1720546306791,3.41857575,3075.9,3075.8,3.25109]
[1720546306992,3.31574349,3075.9,3075.8,3.25109]
[1720546307521,2.29242316,3075.9,3075.8,3.25109]
[1720546307698,3.41866481,3075.9,3075.8,3.25109]
[1720546307892,2.29242316,3075.9,3075.8,3.25109]
[1720546309102,3.41866825,3075.9,3075.8,3.25109]
[1720546309492,0.8734781,3075.9,3075.7,3.25128]
[1720546309678,1.02328878,3075.8,3075.7,3.25128]
[1720546309914,2.44236752,3075.8,3075.7,3.25128]
[1720546310523,2.44236752,3075.8,3075.7,6.50257]
[1720546310823,1.89676688,3075.9,3075.8,3.25118]
[1720546310996,3.3158057,3075.9,3075.8,3.25118]
[1720546311181,0.8734781,3075.9,3075.8,3.25118]
[1720546312862,3.31579905,3075.9,3075.8,3.25118]
[1720546313057,0.8734781,3075.9,3075.8,3.25118]
[1720546313253,1.89676688,3075.9,3075.8,3.25118]
[1720546313408,0.8734781,3075.9,3075.8,3.25118]
[1720546314144,1.89676688,3075.9,3075.8,3.25118]
[1720546314305,0.8734781,3075.9,3075.8,3.25118]
[1720546314909,1.55555746,3075.9,3075.8,6.50236]
[1720546315153,0.68207936,3075.9,3075.8,9.594196]
[1720546315359,0.68207936,3076.0,3075.9,6.50216]
[1720546315525,1.02328878,3076.1,3076.0,6.50194]
[1720546315526,0.8734781,3076.1,3076.0,6.50194]
[1720546315721,3.41856767,3076.1,3076.0,6.50194]
[1720546315939,4.44175998,3076.1,3076.0,3.25097]
[1720546316253,1.99962366,3076.1,3076.0,3.25097]
[1720546316547,4.78299306,3076.1,3076.0,3.25097]
[1720546317326,4.78299306,3076.1,3075.9,3.251]
[1720546317525,3.90951496,3076.0,3075.9,3.251]
[1720546318053,0.8734781,3075.4,3075.3,6.5034]
[1720546318238,1.55589775,3075.4,3075.3,6.5034]
[1720546318550,0.8734781,3075.4,3075.3,6.5034]
[1720546319085,3.31634391,3075.4,3075.3,6.5034]
[1720546319285,3.31634391,3075.4,3075.2,5.83071]
[1720546319457,1.89710758,3075.4,3075.2,3.41381]
[1720546319777,2.23836342,3075.6,3075.5,3.2515]
[1720546319996,4.78390911,3075.6,3075.5,3.2515]
[1720546320181,2.29267614,3075.6,3075.5,6.503]
[1720546320483,1.89709067,3075.6,3075.5,7.38959]
[1720546320642,1.02361257,3075.7,3075.6,6.50278]
[1720546320844,1.5558332,3075.8,3075.7,6.50258]
[1720546321064,0.6823551,3075.8,3075.7,7.802926]
[1720546321742,0.6823551,3075.9,3075.8,6.50236]
[1720546321963,1.89709067,3076.0,3075.8,6.50236]
[1720546321964,1.5558332,3076.0,3075.9,8.75576]
[1720546323562,0.6823551,3076.0,3075.9,12.00684]
[1720546323898,1.02361257,3076.1,3076.0,6.50194]
[1720546323899,0.6823551,3076.1,3076.0,6.50194]
[1720546324054,0.6823551,3076.2,3076.1,6.50172]
[1720546324368,0.6823551,3076.2,3076.1,7.8641813]
[1720546324569,1.02361257,3076.3,3076.2,3.25076]
[1720546324776,3.90979975,3076.3,3076.2,3.25076]
[1720546325080,3.41839253,3076.3,3076.2,3.25076]
[1720546325267,4.7831028,3076.3,3076.2,3.25076]
[1720546325589,3.4185017,3076.3,3076.2,3.25076]
[1720546326091,0.8734781,3076.2,3076.1,3.25086]
[1720546326310,0.8734781,3075.8,3075.7,3.25121]
[1720546326461,1.89708014,3075.8,3075.7,3.25129]
[1720546326661,2.292519,3075.8,3075.7,3.25129]
[1720546326894,2.292519,3075.8,3075.5,3.2515]
[1720546326895,0.8734781,3075.6,3075.5,3.2515]
[1720546327412,2.292519,3075.6,3075.5,3.2515]
[1720546327569,4.78387343,3075.6,3075.5,3.2515]
[1720546328076,4.78387623,3075.6,3075.5,3.2515]
[1720546328283,2.44273759,3075.6,3075.5,7.153303]
[1720546328469,1.02369669,3075.7,3075.6,6.50278]
[1720546328652,1.02369669,3075.7,3075.6,7.5432413]
[1720546328855,1.89718905,3075.8,3075.7,6.50258]
[1720546329087,2.29249425,3075.8,3075.7,6.50258]
[1720546329291,2.29249425,3075.8,3075.7,7.32191443]
[1720546330664,1.41901615,3075.8,3075.7,7.32191443]
[1720546330870,0.8734781,3076.0,3075.9,3.25108]
[1720546331066,3.41858403,3076.0,3075.9,3.25108]
[1720546331282,3.41858403,3076.0,3075.9,6.50216]
[1720546331685,2.29243123,3076.0,3075.9,6.50216]
[1720546332099,0.8734781,3076.0,3075.9,6.50216]
[1720546332467,2.29239337,3076.0,3075.9,6.50216]
[1720546332669,3.41856292,3076.0,3075.9,3.25108]
[1720546333006,4.78354922,3076.0,3075.9,3.25108]
[1720546333161,4.78363453,3076.0,3075.9,3.25108]
[1720546334406,0.8734781,3075.8,3075.6,5.82837]
[1720546334571,1.41900058,3075.7,3075.6,3.25137]
[1720546334776,2.54528041,3075.7,3075.6,3.25137]
[1720546334963,2.54528041,3075.7,3075.6,6.50276]
[1720546335160,1.41900058,3075.7,3075.6,7.383786]
[1720546335399,0.8734781,3075.8,3075.7,3.25129]
[1720546335606,3.41877801,3075.8,3075.7,3.25129]
[1720546338092,0.8734781,3075.3,3075.2,2.739]
[1720546338304,2.238392,3075.4,3075.3,3.25166]
[1720546338472,4.78409979,3075.4,3075.3,3.25166]
[1720546338870,4.78407015,3075.4,3075.2,0.162]
[1720546339073,3.91059205,3075.3,3075.2,0.162]
[1720546339672,3.9101402,3075.3,3075.2,0.162]
[1720546340168,3.5687711,3075.3,3075.2,3.41382]
[1720546340491,2.44236484,3075.3,3075.2,3.41382]
[1720546340692,1.02309295,3075.3,3075.2,0.162]
[1720546341013,2.54576933,3075.3,3075.2,0.162]
[1720546341212,2.54576933,3075.3,3075.2,3.41382]
[1720546341386,1.4193182,3075.3,3075.2,3.41382]
[1720546341574,2.44206101,3075.3,3075.2,3.41382]
[1720546341770,1.4193182,3075.3,3075.2,0.162]
[1720546341979,2.44208706,3075.3,3075.2,0.162]
[1720546342276,2.54580642,3075.3,3075.2,0.162]
[1720546342474,2.23794015,3075.4,3075.2,0.162]
[1720546342776,1.41935162,3075.3,3075.2,0.162]
[1720546343406,3.90928092,3075.3,3075.2,0.162]
[1720546344173,8.79754433,3075.3,3075.2,0.162]
[1720546344371,27.95627003,3075.3,3075.2,0.162]
[1720546344575,28.84710692,3075.3,3075.2,0.00305641]
[1720546344813,0.8734781,3074.3,3074.2,3.25287]
[1720546345042,1.5545487,3074.3,3074.2,3.25287]
[1720546345610,1.55420543,3074.3,3074.2,3.25287]
[1720546345834,0.8734781,3074.3,3074.2,3.25287]
[1720546346380,0.8734781,3074.1,3074.0,2.2596]